[Event "Late-Titled-Tuesday-Blitz-September-19-2023"]
[Site "Chess.com"]
[Date "2023.09.19"]
[Round "1"]
[White "Cambek64"]
[Black "VitaliyBernadskiy"]
[Result "0-1"]
[WhiteElo "2471"]
[BlackElo "2846"]
[TimeControl "180+1"]
[EndTime "14:05:41 PDT"]
[Termination "VitaliyBernadskiy won by resignation"]

1. e4 {[%clk 0:02:59]} 1... c5 {[%clk 0:02:58.5]} 2. Nf3 {[%clk 0:02:57.5]} 2...
d6 {[%clk 0:02:58.7]} 3. c3 {[%clk 0:02:56.1]} 3... Nf6 {[%clk 0:02:58.5]} 4.
Bd3 {[%clk 0:02:56.4]} 4... g6 {[%clk 0:02:58.3]} 5. Bc2 {[%clk 0:02:53.5]} 5...
Bg7 {[%clk 0:02:58.1]} 6. h3 {[%clk 0:02:53.3]} 6... O-O {[%clk 0:02:58.4]} 7.
O-O {[%clk 0:02:53.5]} 7... Nc6 {[%clk 0:02:58]} 8. d4 {[%clk 0:02:48.7]} 8...
cxd4 {[%clk 0:02:58.7]} 9. cxd4 {[%clk 0:02:48.8]} 9... e5 {[%clk 0:02:59.3]}
10. d5 {[%clk 0:02:46.8]} 10... Nb4 {[%clk 0:02:59]} 11. Bb3 {[%clk 0:02:44.8]}
11... a5 {[%clk 0:02:53.8]} 12. Nc3 {[%clk 0:02:41.5]} 12... Bd7 {[%clk
0:02:50.4]} 13. a4 {[%clk 0:02:14.6]} 13... Na6 {[%clk 0:02:50.2]} 14. Be3
{[%clk 0:02:13.4]} 14... b6 {[%clk 0:02:50.4]} 15. Bc4 {[%clk 0:02:08.6]} 15...
Nc5 {[%clk 0:02:50.8]} 16. Bxc5 {[%clk 0:02:07.8]} 16... bxc5 {[%clk 0:02:51.7]}
17. Nd2 {[%clk 0:02:02.9]} 17... Nh5 {[%clk 0:02:51.4]} 18. Bb5 {[%clk
0:01:59.6]} 18... Bc8 {[%clk 0:02:49.1]} 19. Bc6 {[%clk 0:01:48.2]} 19... Rb8
{[%clk 0:02:48.5]} 20. Nc4 {[%clk 0:01:48.4]} 20... Rb4 {[%clk 0:02:43]} 21. b3
{[%clk 0:01:42.9]} 21... Nf4 {[%clk 0:02:43.1]} 22. Kh2 {[%clk 0:01:34.1]} 22...
Qh4 {[%clk 0:02:40.8]} 23. Qf3 {[%clk 0:01:09.5]} 23... Rxb3 {[%clk 0:02:37.5]}
24. Rab1 {[%clk 0:01:08.3]} 24... Rxb1 {[%clk 0:02:20.8]} 25. Rxb1 {[%clk
0:01:04.1]} 25... f5 {[%clk 0:02:20.6]} 26. Qg3 {[%clk 0:00:56.4]} 26... Qf6
{[%clk 0:02:17.4]} 27. Rb8 {[%clk 0:00:53.2]} 27... Ba6 {[%clk 0:01:59.7]} 28.
Rxf8+ {[%clk 0:00:49.5]} 28... Bxf8 {[%clk 0:02:00.6]} 29. Nb5 {[%clk 0:00:48]}
29... fxe4 {[%clk 0:01:59.7]} 30. Nbxd6 {[%clk 0:00:46.2]} 30... Bxd6 {[%clk
0:01:58.8]} 31. Nxd6 {[%clk 0:00:44.1]} 31... Qxd6 {[%clk 0:01:59.7]} 32. Qc3
{[%clk 0:00:40.4]} 32... Nxd5 {[%clk 0:01:57.7]} 33. Bxd5+ {[%clk 0:00:34.6]}
33... Qxd5 {[%clk 0:01:58.6]} 34. Qxa5 {[%clk 0:00:34]} 34... Bb7 {[%clk
0:01:55.9]} 35. Qc7 {[%clk 0:00:34.3]} 35... e3 {[%clk 0:01:55]} 36. f3 {[%clk
0:00:33.9]} 36... e2 {[%clk 0:01:55]} 37. Qb8+ {[%clk 0:00:34.1]} 37... Kg7
{[%clk 0:01:54.5]} 38. Qc7+ {[%clk 0:00:32.6]} 38... Kf6 {[%clk 0:01:47]} 39.
Qxh7 {[%clk 0:00:27.2]} 39... e1=Q {[%clk 0:01:47.2]} 40. Qh8+ {[%clk
0:00:26.8]} 40... Ke7 {[%clk 0:01:45.8]} 41. Qg7+ {[%clk 0:00:25.8]} 41... Qf7
{[%clk 0:01:45.9]} 0-1

[Event "Late-Titled-Tuesday-Blitz-September-19-2023"]
[Site "Chess.com"]
[Date "2023.09.19"]
[Round "1"]
[White "DanielTitichoca"]
[Black "ferrufino64"]
[Result "1-0"]
[WhiteElo "2539"]
[BlackElo "2201"]
[TimeControl "180+1"]
[EndTime "14:05:48 PDT"]
[Termination "DanielTitichoca won on time"]

1. Nf3 {[%clk 0:02:53.5]} 1... Nf6 {[%clk 0:02:24.8]} 2. g3 {[%clk 0:02:53.1]}
2... c5 {[%clk 0:02:20.7]} 3. Bg2 {[%clk 0:02:54]} 3... g6 {[%clk 0:02:17.4]} 4.
O-O {[%clk 0:02:54.9]} 4... Bg7 {[%clk 0:02:17.4]} 5. c4 {[%clk 0:02:55.2]} 5...
Nc6 {[%clk 0:02:16.2]} 6. Nc3 {[%clk 0:02:55.9]} 6... O-O {[%clk 0:02:14.8]} 7.
d4 {[%clk 0:02:56.5]} 7... cxd4 {[%clk 0:02:11.6]} 8. Nxd4 {[%clk 0:02:57.4]}
8... Nxd4 {[%clk 0:02:00.2]} 9. Qxd4 {[%clk 0:02:57]} 9... d6 {[%clk 0:02:00]}
10. Qh4 {[%clk 0:02:56.5]} 10... Bd7 {[%clk 0:01:52.3]} 11. Rd1 {[%clk
0:02:52.1]} 11... Qc7 {[%clk 0:01:47.9]} 12. Bf4 {[%clk 0:02:43.5]} 12... Rac8
{[%clk 0:01:20.6]} 13. Rac1 {[%clk 0:02:42.4]} 13... Rfd8 {[%clk 0:01:17.6]} 14.
c5 {[%clk 0:02:38.2]} 14... Bc6 {[%clk 0:01:01.6]} 15. cxd6 {[%clk 0:02:37.3]}
15... exd6 {[%clk 0:00:59.7]} 16. Bxc6 {[%clk 0:02:37.1]} 16... bxc6 {[%clk
0:00:57.8]} 17. Bg5 {[%clk 0:02:35.8]} 17... Nh5 {[%clk 0:00:25.4]} 18. Bxd8
{[%clk 0:02:33.5]} 18... Rxd8 {[%clk 0:00:26.3]} 19. Nd5 {[%clk 0:02:27.2]}
19... Qd7 {[%clk 0:00:23.8]} 20. Ne7+ {[%clk 0:02:25.9]} 20... Kf8 {[%clk
0:00:20.6]} 21. Nxc6 {[%clk 0:02:26.1]} 21... Rc8 {[%clk 0:00:19.8]} 22. Nb4
{[%clk 0:02:24.1]} 22... Bf6 {[%clk 0:00:19.1]} 23. Qe4 {[%clk 0:02:19.7]} 23...
Re8 {[%clk 0:00:10.8]} 24. Qf3 {[%clk 0:02:19.7]} 24... Qe6 {[%clk 0:00:10.2]}
25. Nd5 {[%clk 0:02:16.2]} 25... Bd8 {[%clk 0:00:08.8]} 26. e3 {[%clk 0:02:15]}
26... Nf6 {[%clk 0:00:03.3]} 27. b4 {[%clk 0:02:13.4]} 27... Ne4 {[%clk
0:00:02.7]} 28. a4 {[%clk 0:02:10.7]} 28... h5 {[%clk 0:00:02.5]} 29. Nf4 {[%clk
0:02:07.7]} 29... Qf5 {[%clk 0:00:02.2]} 30. Rd5 {[%clk 0:02:06]} 30... Re5
{[%clk 0:00:01.7]} 31. Rcd1 {[%clk 0:02:00.7]} 31... Be7 {[%clk 0:00:01.6]} 32.
Qg2 {[%clk 0:01:53.9]} 32... Nc3 {[%clk 0:00:01.4]} 33. Rxd6 {[%clk 0:01:43.5]}
33... Bxd6 {[%clk 0:00:01.1]} 34. Rxd6 {[%clk 0:01:43.9]} 34... Kg7 {[%clk
0:00:01.4]} 35. h4 {[%clk 0:01:39.5]} 1-0

[Event "Late-Titled-Tuesday-Blitz-September-19-2023"]
[Site "Chess.com"]
[Date "2023.09.19"]
[Round "1"]
[White "SaqoChess_Twitch"]
[Black "pirulillo"]
[Result "1-0"]
[WhiteElo "2673"]
[BlackElo "2381"]
[TimeControl "180+1"]
[EndTime "14:05:50 PDT"]
[Termination "SaqoChess_Twitch won by resignation"]

1. d4 {[%clk 0:03:00.9]} 1... Nf6 {[%clk 0:02:55.6]} 2. c4 {[%clk 0:03:00.6]}
2... g6 {[%clk 0:02:55.2]} 3. Nc3 {[%clk 0:03:01.2]} 3... Bg7 {[%clk 0:02:55.5]}
4. Nf3 {[%clk 0:03:01.8]} 4... O-O {[%clk 0:02:55.3]} 5. Bg5 {[%clk 0:03:02.5]}
5... c5 {[%clk 0:02:55]} 6. d5 {[%clk 0:03:01.5]} 6... d6 {[%clk 0:02:52]} 7. e4
{[%clk 0:03:00.3]} 7... b5 {[%clk 0:02:50.9]} 8. cxb5 {[%clk 0:03:00.2]} 8... a6
{[%clk 0:02:50.7]} 9. bxa6 {[%clk 0:03:00.7]} 9... Bxa6 {[%clk 0:02:50.1]} 10.
Bxa6 {[%clk 0:03:00.7]} 10... Rxa6 {[%clk 0:02:38.3]} 11. O-O {[%clk 0:03:00.8]}
11... Nbd7 {[%clk 0:02:36.4]} 12. Re1 {[%clk 0:02:58.8]} 12... h6 {[%clk
0:02:11.2]} 13. Bd2 {[%clk 0:02:56]} 13... Qa8 {[%clk 0:02:09.3]} 14. Qc2 {[%clk
0:02:55.6]} 14... Rb8 {[%clk 0:02:07.7]} 15. g3 {[%clk 0:02:49.7]} 15... Ng4
{[%clk 0:01:45.5]} 16. Rab1 {[%clk 0:02:48.9]} 16... Nge5 {[%clk 0:01:40.1]} 17.
Nxe5 {[%clk 0:02:48.8]} 17... Nxe5 {[%clk 0:01:40.8]} 18. Kg2 {[%clk 0:02:49.1]}
18... Nc4 {[%clk 0:01:38.2]} 19. Bf4 {[%clk 0:02:37.1]} 19... Nb6 {[%clk
0:01:12.2]} 20. b3 {[%clk 0:02:34.9]} 20... Nd7 {[%clk 0:01:06]} 21. a4 {[%clk
0:02:34]} 21... Ne5 {[%clk 0:00:59.6]} 22. Nb5 {[%clk 0:02:31.1]} 22... Qb7
{[%clk 0:00:58]} 23. Na3 {[%clk 0:02:27.9]} 23... Qb4 {[%clk 0:00:52.5]} 24.
Bxe5 {[%clk 0:02:25.1]} 24... Bxe5 {[%clk 0:00:51]} 25. Nc4 {[%clk 0:02:24.9]}
25... Bg7 {[%clk 0:00:51.1]} 26. h4 {[%clk 0:02:25.1]} 26... h5 {[%clk
0:00:50.4]} 27. f4 {[%clk 0:02:21]} 27... Bd4 {[%clk 0:00:45.7]} 28. Kh3 {[%clk
0:02:17.1]} 28... Kg7 {[%clk 0:00:44.4]} 29. e5 {[%clk 0:02:15.9]} 29... Qb7
{[%clk 0:00:41.8]} 30. Qe4 {[%clk 0:02:10.2]} 30... dxe5 {[%clk 0:00:37]} 31.
fxe5 {[%clk 0:02:08.8]} 31... e6 {[%clk 0:00:36.8]} 32. d6 {[%clk 0:02:01.2]}
32... Qxe4 {[%clk 0:00:37.1]} 33. Rxe4 {[%clk 0:02:01.4]} 33... Rb4 {[%clk
0:00:35.5]} 34. Na3 {[%clk 0:01:54]} 34... Ra8 {[%clk 0:00:33.6]} 35. Nb5 {[%clk
0:01:52.3]} 35... Rb8 {[%clk 0:00:19.8]} 36. Nxd4 {[%clk 0:01:51.7]} 36... cxd4
{[%clk 0:00:19.5]} 37. a5 {[%clk 0:01:41.9]} 37... Kg8 {[%clk 0:00:18.9]} 38. a6
{[%clk 0:01:41.8]} 38... Ra8 {[%clk 0:00:17.9]} 39. Ra1 {[%clk 0:01:41.3]} 39...
Rxb3 {[%clk 0:00:18.3]} 40. Rxd4 {[%clk 0:01:41.2]} 40... Rb6 {[%clk 0:00:18]}
41. d7 {[%clk 0:01:41.2]} 41... Rd8 {[%clk 0:00:18.5]} 42. a7 {[%clk 0:01:41.1]}
1-0

[Event "Late-Titled-Tuesday-Blitz-September-19-2023"]
[Site "Chess.com"]
[Date "2023.09.19"]
[Round "1"]
[White "Abund"]
[Black "stasOR4ik"]
[Result "1-0"]
[WhiteElo "2766"]
[BlackElo "2449"]
[TimeControl "180+1"]
[EndTime "14:05:52 PDT"]
[Termination "Abund won on time"]

1. e4 {[%clk 0:03:00.9]} 1... c6 {[%clk 0:02:59.7]} 2. d4 {[%clk 0:03:00.9]}
2... d5 {[%clk 0:02:59.9]} 3. exd5 {[%clk 0:03:01.8]} 3... cxd5 {[%clk
0:03:00.2]} 4. Bd3 {[%clk 0:03:02.5]} 4... Nf6 {[%clk 0:03:00.1]} 5. h3 {[%clk
0:03:02.7]} 5... Nc6 {[%clk 0:02:58.9]} 6. c3 {[%clk 0:03:03.2]} 6... g6 {[%clk
0:02:52.8]} 7. Nf3 {[%clk 0:03:03.2]} 7... Bf5 {[%clk 0:02:52.9]} 8. O-O {[%clk
0:03:03.9]} 8... Bxd3 {[%clk 0:02:52.4]} 9. Qxd3 {[%clk 0:03:04.8]} 9... Bg7
{[%clk 0:02:52.8]} 10. Bf4 {[%clk 0:03:05]} 10... O-O {[%clk 0:02:52.7]} 11.
Nbd2 {[%clk 0:03:05.6]} 11... a6 {[%clk 0:02:52.4]} 12. Rfe1 {[%clk 0:03:04.5]}
12... b5 {[%clk 0:02:51.4]} 13. Nb3 {[%clk 0:02:59.4]} 13... Nd7 {[%clk
0:02:48.3]} 14. Nc5 {[%clk 0:02:43.1]} 14... Nxc5 {[%clk 0:02:14.3]} 15. dxc5
{[%clk 0:02:44]} 15... Re8 {[%clk 0:02:13.8]} 16. Ne5 {[%clk 0:02:16.9]} 16...
Qc7 {[%clk 0:01:58.2]} 17. Qxd5 {[%clk 0:02:00.1]} 17... Nxe5 {[%clk 0:01:42.1]}
18. Bxe5 {[%clk 0:02:00.3]} 18... Rad8 {[%clk 0:01:31.3]} 19. Qxf7+ {[%clk
0:01:53]} 19... Kxf7 {[%clk 0:01:30.8]} 20. Bxc7 {[%clk 0:01:53.9]} 20... Rd2
{[%clk 0:01:29.1]} 21. Rab1 {[%clk 0:01:48.5]} 21... Rc8 {[%clk 0:00:55.3]} 22.
Bb6 {[%clk 0:01:42.4]} 22... Rc6 {[%clk 0:00:44.8]} 23. Kf1 {[%clk 0:01:39.4]}
23... Ke8 {[%clk 0:00:19.3]} 24. Re2 {[%clk 0:01:35.4]} 24... Rxe2 {[%clk
0:00:17.8]} 25. Kxe2 {[%clk 0:01:36.3]} 25... Bh6 {[%clk 0:00:16.4]} 26. Rd1
{[%clk 0:01:33]} 26... Re6+ {[%clk 0:00:16.3]} 27. Kf1 {[%clk 0:01:33.1]} 27...
Re4 {[%clk 0:00:14.4]} 28. c6 {[%clk 0:01:24.8]} 28... Rc4 {[%clk 0:00:12.2]}
29. c7 {[%clk 0:01:24.9]} 29... Kf7 {[%clk 0:00:06.3]} 30. Rd8 {[%clk 0:01:25]}
1-0

[Event "Late-Titled-Tuesday-Blitz-September-19-2023"]
[Site "Chess.com"]
[Date "2023.09.19"]
[Round "1"]
[White "victormago"]
[Black "nitpicker"]
[Result "1-0"]
[WhiteElo "2550"]
[BlackElo "2236"]
[TimeControl "180+1"]
[EndTime "14:05:54 PDT"]
[Termination "victormago won on time"]

1. d4 {[%clk 0:02:59.7]} 1... Nf6 {[%clk 0:02:58.6]} 2. c4 {[%clk 0:02:58.5]}
2... e6 {[%clk 0:02:57.4]} 3. Nc3 {[%clk 0:02:58.2]} 3... Bb4 {[%clk 0:02:52.5]}
4. Qc2 {[%clk 0:02:58]} 4... c5 {[%clk 0:02:51.2]} 5. dxc5 {[%clk 0:02:57.6]}
5... Bxc5 {[%clk 0:02:50.8]} 6. Nf3 {[%clk 0:02:55.5]} 6... Qb6 {[%clk
0:02:49.3]} 7. e3 {[%clk 0:02:55.3]} 7... Qc7 {[%clk 0:02:48.9]} 8. Be2 {[%clk
0:02:54.7]} 8... a6 {[%clk 0:02:48.8]} 9. O-O {[%clk 0:02:54.6]} 9... Be7 {[%clk
0:02:48.9]} 10. b3 {[%clk 0:02:51.6]} 10... d6 {[%clk 0:02:48.2]} 11. Bb2 {[%clk
0:02:51.8]} 11... O-O {[%clk 0:02:40.9]} 12. Rac1 {[%clk 0:02:51.4]} 12... b6
{[%clk 0:02:41.1]} 13. Qb1 {[%clk 0:02:50.9]} 13... Bb7 {[%clk 0:02:40.6]} 14.
Rfd1 {[%clk 0:02:51.6]} 14... Nbd7 {[%clk 0:02:40.6]} 15. h3 {[%clk 0:02:51.9]}
15... Rac8 {[%clk 0:02:38.9]} 16. Rd2 {[%clk 0:02:48.3]} 16... Qb8 {[%clk
0:02:37.5]} 17. Rcd1 {[%clk 0:02:48.3]} 17... Rfe8 {[%clk 0:02:31.2]} 18. Ng5
{[%clk 0:02:43.1]} 18... g6 {[%clk 0:02:08.8]} 19. Nge4 {[%clk 0:02:34.6]} 19...
Qa8 {[%clk 0:01:57.8]} 20. Bf3 {[%clk 0:02:22.8]} 20... Nc5 {[%clk 0:01:45.1]}
21. Nxf6+ {[%clk 0:02:13.6]} 21... Bxf6 {[%clk 0:01:44.3]} 22. Bxb7 {[%clk
0:02:13.1]} 22... Nxb7 {[%clk 0:01:44.2]} 23. Ne4 {[%clk 0:02:10.9]} 23... Bxb2
{[%clk 0:01:08.7]} 24. Qxb2 {[%clk 0:02:09.3]} 24... Red8 {[%clk 0:01:02.1]} 25.
Nf6+ {[%clk 0:01:54.6]} 25... Kf8 {[%clk 0:00:59.5]} 26. Nxh7+ {[%clk
0:01:54.6]} 26... Kg8 {[%clk 0:00:58.6]} 27. Nf6+ {[%clk 0:01:53.1]} 27... Kf8
{[%clk 0:00:58.7]} 28. Ne4 {[%clk 0:01:51.1]} 28... Nc5 {[%clk 0:00:41.6]} 29.
Qh8+ {[%clk 0:01:40.7]} 29... Ke7 {[%clk 0:00:40.9]} 30. Qf6+ {[%clk 0:01:41.3]}
30... Kf8 {[%clk 0:00:37.9]} 31. Nxd6 {[%clk 0:01:37.7]} 31... Rc7 {[%clk
0:00:38]} 32. Nf5 {[%clk 0:01:21.3]} 1-0

[Event "Late-Titled-Tuesday-Blitz-September-19-2023"]
[Site "Chess.com"]
[Date "2023.09.19"]
[Round "1"]
[White "PawnEatingZombie"]
[Black "Arteler"]
[Result "0-1"]
[WhiteElo "2201"]
[BlackElo "2539"]
[TimeControl "180+1"]
[EndTime "14:06:03 PDT"]
[Termination "Arteler won on time"]

1. e4 {[%clk 0:03:00.9]} 1... e6 {[%clk 0:02:59.1]} 2. d4 {[%clk 0:02:59.4]}
2... d5 {[%clk 0:02:59.7]} 3. e5 {[%clk 0:02:59.4]} 3... c5 {[%clk 0:02:59.3]}
4. c3 {[%clk 0:03:00.1]} 4... Qb6 {[%clk 0:02:59.7]} 5. Nf3 {[%clk 0:02:58.6]}
5... Nc6 {[%clk 0:03:00.3]} 6. Bd3 {[%clk 0:02:57.8]} 6... cxd4 {[%clk 0:03:00]}
7. cxd4 {[%clk 0:02:56.9]} 7... Bd7 {[%clk 0:03:00.8]} 8. O-O {[%clk 0:02:46.7]}
8... Nxd4 {[%clk 0:03:00.2]} 9. Nxd4 {[%clk 0:02:25.3]} 9... Qxd4 {[%clk
0:03:01.1]} 10. Re1 {[%clk 0:02:23.3]} 10... a6 {[%clk 0:02:59.6]} 11. Nc3
{[%clk 0:02:22.8]} 11... Ne7 {[%clk 0:02:59.7]} 12. Qe2 {[%clk 0:02:13.7]} 12...
Nc6 {[%clk 0:02:59.9]} 13. Bg5 {[%clk 0:02:01.5]} 13... Qa7 {[%clk 0:02:29.9]}
14. Kh1 {[%clk 0:01:37.2]} 14... h6 {[%clk 0:02:27.6]} 15. Bh4 {[%clk
0:01:35.2]} 15... Bc5 {[%clk 0:02:24.9]} 16. f4 {[%clk 0:01:22.2]} 16... b5
{[%clk 0:01:35.7]} 17. f5 {[%clk 0:01:20.2]} 17... Nd4 {[%clk 0:01:32.6]} 18.
Qf1 {[%clk 0:01:13.6]} 18... b4 {[%clk 0:01:33]} 19. fxe6 {[%clk 0:01:12.7]}
19... Bxe6 {[%clk 0:01:29.4]} 20. Na4 {[%clk 0:00:57.8]} 20... Be7 {[%clk
0:01:26.7]} 21. Bxe7 {[%clk 0:00:47.2]} 21... Qxe7 {[%clk 0:01:27.6]} 22. Bxa6
{[%clk 0:00:33.3]} 22... O-O {[%clk 0:01:27.1]} 23. b3 {[%clk 0:00:10.3]} 23...
Nc2 {[%clk 0:01:26]} 24. Bd3 {[%clk 0:00:09.3]} 24... Nxe1 {[%clk 0:01:24.2]}
25. Rxe1 {[%clk 0:00:08.2]} 25... Qg5 {[%clk 0:01:19.4]} 26. Bb1 {[%clk
0:00:08.5]} 26... Rac8 {[%clk 0:01:14.6]} 27. Qd3 {[%clk 0:00:08.4]} 27... g6
{[%clk 0:01:15.2]} 28. Nb6 {[%clk 0:00:03.7]} 28... Rc1 {[%clk 0:01:15.3]} 29.
Qe2 {[%clk 0:00:01.4]} 29... Bg4 {[%clk 0:01:09]} 0-1

[Event "Late-Titled-Tuesday-Blitz-September-19-2023"]
[Site "Chess.com"]
[Date "2023.09.19"]
[Round "1"]
[White "rionelG"]
[Black "Alphafischer2019"]
[Result "0-1"]
[WhiteElo "2325"]
[BlackElo "2607"]
[TimeControl "180+1"]
[EndTime "14:06:04 PDT"]
[Termination "Alphafischer2019 won by resignation"]

1. e4 {[%clk 0:03:00.9]} 1... c5 {[%clk 0:03:00.1]} 2. g3 {[%clk 0:03:00.6]}
2... Nc6 {[%clk 0:03:00.8]} 3. Bg2 {[%clk 0:03:00.3]} 3... g6 {[%clk 0:03:01.5]}
4. Ne2 {[%clk 0:03:01]} 4... Bg7 {[%clk 0:03:01.7]} 5. c3 {[%clk 0:03:01.7]}
5... e5 {[%clk 0:02:59.9]} 6. d3 {[%clk 0:03:02.2]} 6... Nge7 {[%clk 0:02:58.8]}
7. Be3 {[%clk 0:03:02.7]} 7... d6 {[%clk 0:02:58.5]} 8. f4 {[%clk 0:03:02.5]}
8... O-O {[%clk 0:02:58.2]} 9. O-O {[%clk 0:03:01.2]} 9... f5 {[%clk 0:02:58.4]}
10. fxe5 {[%clk 0:03:00.6]} 10... Nxe5 {[%clk 0:02:56.7]} 11. Nd2 {[%clk
0:03:00.5]} 11... N7c6 {[%clk 0:02:52.8]} 12. Nf3 {[%clk 0:02:51.9]} 12... Ng4
{[%clk 0:02:40.8]} 13. Bf4 {[%clk 0:02:46.5]} 13... fxe4 {[%clk 0:02:25.1]} 14.
dxe4 {[%clk 0:02:42]} 14... Nge5 {[%clk 0:02:23.4]} 15. Ng5 {[%clk 0:02:27.2]}
15... h6 {[%clk 0:02:18.7]} 16. Qd5+ {[%clk 0:02:25.1]} 16... Kh8 {[%clk
0:02:18.6]} 17. Ne6 {[%clk 0:02:25.4]} 17... Bxe6 {[%clk 0:02:18.4]} 18. Qxe6
{[%clk 0:02:26.3]} 18... Rf6 {[%clk 0:02:17.5]} 19. Qh3 {[%clk 0:02:23.1]} 19...
Kh7 {[%clk 0:02:11]} 20. g4 {[%clk 0:02:04.3]} 20... Rf7 {[%clk 0:02:08.1]} 21.
g5 {[%clk 0:01:51.5]} 21... h5 {[%clk 0:02:07.5]} 22. Ng3 {[%clk 0:01:52.2]}
22... Kg8 {[%clk 0:01:58.2]} 23. Rad1 {[%clk 0:01:44.4]} 23... Qe7 {[%clk
0:01:57.3]} 24. Rf2 {[%clk 0:01:38]} 24... Raf8 {[%clk 0:01:57.7]} 25. Be3
{[%clk 0:01:32]} 25... Rxf2 {[%clk 0:01:45.2]} 26. Bxf2 {[%clk 0:01:31.8]} 26...
Ng4 {[%clk 0:01:43.2]} 27. Rf1 {[%clk 0:01:21.8]} 27... Qxg5 {[%clk 0:01:37.4]}
28. e5 {[%clk 0:01:10.1]} 28... Ncxe5 {[%clk 0:01:35.4]} 29. Bd5+ {[%clk
0:01:08.1]} 29... Kh7 {[%clk 0:01:35.8]} 30. Ne4 {[%clk 0:01:08]} 30... Nf3+
{[%clk 0:01:26.7]} 31. Qxf3 {[%clk 0:01:06.8]} 31... Qxd5 {[%clk 0:01:27.3]} 32.
Qg2 {[%clk 0:00:56.3]} 32... Kh8 {[%clk 0:01:27]} 33. h3 {[%clk 0:00:50]} 33...
Ne5 {[%clk 0:01:26.8]} 34. Bh4 {[%clk 0:00:41]} 34... Rxf1+ {[%clk 0:01:21.8]}
35. Kxf1 {[%clk 0:00:41.9]} 35... Qd1+ {[%clk 0:01:19.9]} 36. Kf2 {[%clk
0:00:40.8]} 36... Qc2+ {[%clk 0:01:17.7]} 37. Kg1 {[%clk 0:00:38.9]} 37... Qc1+
{[%clk 0:01:13.6]} 38. Kh2 {[%clk 0:00:36.6]} 38... Qf4+ {[%clk 0:01:12.4]} 39.
Bg3 {[%clk 0:00:35.6]} 39... Nf3+ {[%clk 0:01:12.5]} 40. Kh1 {[%clk 0:00:30.3]}
40... Qc1+ {[%clk 0:01:11.7]} 0-1

[Event "Late-Titled-Tuesday-Blitz-September-19-2023"]
[Site "Chess.com"]
[Date "2023.09.19"]
[Round "1"]
[White "Chessdreamer2020"]
[Black "Nikachu"]
[Result "0-1"]
[WhiteElo "2512"]
[BlackElo "2185"]
[TimeControl "180+1"]
[EndTime "14:06:05 PDT"]
[Termination "Nikachu won by resignation"]

1. e4 {[%clk 0:02:59.3]} 1... c5 {[%clk 0:02:59.1]} 2. Nf3 {[%clk 0:02:59.6]}
2... d6 {[%clk 0:02:59.6]} 3. d4 {[%clk 0:02:56.5]} 3... cxd4 {[%clk 0:03:00.5]}
4. Qxd4 {[%clk 0:02:56.9]} 4... Nc6 {[%clk 0:02:59.9]} 5. Bb5 {[%clk 0:02:57.2]}
5... Bd7 {[%clk 0:03:00.4]} 6. Qe3 {[%clk 0:02:51.2]} 6... Nf6 {[%clk
0:03:00.1]} 7. h3 {[%clk 0:02:51.5]} 7... e6 {[%clk 0:03:00]} 8. O-O {[%clk
0:02:51.9]} 8... a6 {[%clk 0:03:00.2]} 9. Ba4 {[%clk 0:02:45]} 9... b5 {[%clk
0:02:54.6]} 10. Bb3 {[%clk 0:02:44.9]} 10... Be7 {[%clk 0:02:55]} 11. Rd1 {[%clk
0:02:44.7]} 11... Qc7 {[%clk 0:02:54.8]} 12. a4 {[%clk 0:02:43.8]} 12... b4
{[%clk 0:02:48]} 13. Nbd2 {[%clk 0:02:42.7]} 13... O-O {[%clk 0:02:44]} 14. Nc4
{[%clk 0:02:43]} 14... Na5 {[%clk 0:02:41.4]} 15. Nxa5 {[%clk 0:02:40.5]} 15...
Qxa5 {[%clk 0:02:42.3]} 16. Nd2 {[%clk 0:02:40.3]} 16... Qc7 {[%clk 0:02:29.8]}
17. Nc4 {[%clk 0:02:39.9]} 17... Bc6 {[%clk 0:02:29.4]} 18. e5 {[%clk
0:02:24.8]} 18... Nd5 {[%clk 0:02:28.4]} 19. Qg3 {[%clk 0:02:23.4]} 19... dxe5
{[%clk 0:02:26.4]} 20. Nxe5 {[%clk 0:02:15.4]} 20... Bb7 {[%clk 0:02:17.6]} 21.
Nd3 {[%clk 0:01:35.5]} 21... Qxg3 {[%clk 0:02:15.2]} 22. fxg3 {[%clk 0:01:36.1]}
22... Rfd8 {[%clk 0:02:06.3]} 23. Bd2 {[%clk 0:01:27]} 23... Rac8 {[%clk
0:01:59.3]} 24. Rac1 {[%clk 0:01:11.2]} 24... a5 {[%clk 0:01:56.6]} 25. Nf4
{[%clk 0:01:05.1]} 25... Bf6 {[%clk 0:01:51.9]} 26. Nxd5 {[%clk 0:01:04.3]}
26... Bxd5 {[%clk 0:01:52.8]} 27. Bxd5 {[%clk 0:01:04]} 27... Rxd5 {[%clk
0:01:52.3]} 28. Be3 {[%clk 0:00:50.9]} 28... Bxb2 {[%clk 0:01:38.5]} 29. Rxd5
{[%clk 0:00:47.4]} 29... exd5 {[%clk 0:01:39.4]} 30. Rd1 {[%clk 0:00:47.7]}
30... d4 {[%clk 0:01:26.9]} 31. Bf2 {[%clk 0:00:47.4]} 31... Rxc2 {[%clk
0:00:54.1]} 32. Bxd4 {[%clk 0:00:46.2]} 32... Rc1 {[%clk 0:00:54.2]} 33. Rxc1
{[%clk 0:00:45.6]} 33... Bxc1 {[%clk 0:00:55.1]} 34. Kf1 {[%clk 0:00:33.5]}
34... b3 {[%clk 0:00:54.6]} 35. Ke2 {[%clk 0:00:34]} 35... b2 {[%clk 0:00:54.9]}
36. Bxb2 {[%clk 0:00:34.6]} 36... Bxb2 {[%clk 0:00:55.4]} 37. Kd3 {[%clk
0:00:34.9]} 37... Ba3 {[%clk 0:00:55.4]} 38. Kc4 {[%clk 0:00:34.9]} 38... Bb4
{[%clk 0:00:56.3]} 0-1